fUSD/lending_fUSD_20241123
["ID","MTS","AMOUNT","RATE_DAILY","PERIOD"]
[343146060,1732380649647,-293.84411346,0.0005599,120]
[343146061,1732380649659,-939.54577825,0.0005599,120]
[343146062,1732380649670,-504.07908259,0.0005599,60]
[343146063,1732380649685,-1867.32892037,0.0005599,60]
[343146064,1732380649697,-2029.15105504,0.0005599,60]
[343146065,1732380649710,-11186.04487449,0.0005599,60]
[343146066,1732380649722,-11371.88162255,0.0005599,60]
[343146067,1732380649735,-366.09227424,0.0005599,60]
[343146068,1732380649836,-78393.31644373,0.0005599,60]
[343146069,1732380649878,-60504.71203579,0.0005599,60]
[343146070,1732380649891,-10185.0,0.0005599,60]
[343146071,1732380649903,-2920.0,0.0005599,60]
[343146072,1732380649915,-4980.0,0.0005599,60]
[343146073,1732380649928,-17060.07282414,0.0005599,60]
[343146074,1732380813587,674.0,0.000422,2]
[343146075,1732380814338,607.0,0.000422,2]
[343146076,1732380816561,184.61575,0.000368,2]
[343146077,1732380840961,215.99,0.00041096,2]
[343146086,1732381126559,203.60134086,0.00041096,2]
[343146087,1732381196488,275.02,0.00041096,2]
[343146088,1732381196520,-184.61575,0.00043484,2]
[343146089,1732381196543,-215.99,0.00046143,2]
[343146090,1732381196568,-904.14724473,0.00048099,2]
[343146091,1732381196591,-3923.22692546,0.0004819,2]
[343146092,1732381196614,-706.282,0.00048199,82]
[343146093,1732381196637,-992.0,0.00048199,4]
[343146094,1732381196661,-550.0,0.00048199,5]
[343146095,1732381196683,-877.2592,0.000482,2]
[343146096,1732381196705,-1000.0,0.000482,2]
[343146097,1732381196730,-82492.40887981,0.000482,2]
[343146098,1732381492026,152.78,0.00041096,2]
[343146099,1732381577260,383.2636833,0.00040274,4]
[343146100,1732381622373,191.6318416,0.00040274,4]
[343146103,1732381667279,191.6318417,0.00040274,4]
[343146104,1732381708001,200.0,0.00042,120]
[343146107,1732381767332,200.0,0.00042,2]
[343146108,1732381798308,-175.0,0.00044,120]
[343146115,1732381832238,-25.0,0.00044,120]
[343146116,1732381832248,-200.0,0.00046,120]
[343146117,1732381832258,-450.0,0.00048,120]
[343146118,1732381832267,-733.2574,0.000481,2]
[343146119,1732381832277,-306.0,0.00048199,5]
[343146120,1732381832287,-632.781,0.00048199,82]
[343146121,1732381832297,-250.0,0.00048199,5]
[343146122,1732381832306,-2264.6116,0.000482,2]
[343146123,1732381832317,-3454.0037377,0.000482,2]
[343146124,1732381832328,-1460.11,0.000482,2]
[343146125,1732381832339,-6187.25133178,0.000482,2]
[343146126,1732381832351,-4141.61445071,0.000482,2]
[343146127,1732381832361,-55.24914929,0.000482,2]
[343146128,1732381832378,-177.84570008,0.000482,2]
[343146129,1732381832388,-14666.0487329,0.00048367,2]
[343146130,1732381832397,-500.0,0.000484,2]
[343146131,1732381832407,-1216.24,0.00049939,2]
[343146132,1732381832417,-450.0,0.0005,120]
[343146133,1732381832427,-184.61575,0.00050169,120]
[343146134,1732381832437,-4987.77,0.000505,120]
[343146135,1732381832446,-600.0,0.00050972,9]
[343146136,1732381832457,-8397.24,0.00050973,30]
[343146137,1732381832467,-2783.97,0.00050973,2]
[343146138,1732381832478,-5730.36,0.00050973,2]
[343146139,1732381832487,-706.6,0.00050973,10]
[343146140,1732381832497,-2347.04,0.00050973,2]
[343146141,1732381832507,-3043.79,0.00050973,2]
[343146142,1732381832516,-150.0,0.00051097,2]
[343146143,1732381832527,-286.08,0.00051097,2]
[343146144,1732381832541,-43250.55809434,0.00051097,7]
[343146145,1732381832551,-10000.0,0.00051097,120]
[343146146,1732381832563,-408.76081615,0.00051097,120]
[343146147,1732381832579,-215.99,0.0005119,2]
[343146148,1732381832589,-166.39,0.00051531,2]
[343146149,1732381832599,-2835.93,0.00051531,2]
[343146150,1732381832610,-863.42,0.0005163,2]
[343146151,1732381832621,-1276.85,0.00051634,2]
[343146152,1732381832632,-438.83,0.00051705,2]
[343146153,1732381832642,-161.31,0.00051803,2]
[343146154,1732381832653,-23900.0,0.00051814,2]
[343146155,1732381832663,-250.0,0.00051849,120]
[343146156,1732381832673,-500.0,0.00051859,2]
[343146157,1732381832683,-500.0,0.00051884,2]
[343146158,1732381832692,-450.0,0.00052,120]
[343146159,1732381832702,-248.0,0.00052047,2]
[343146160,1732381832711,-200.0,0.00052122,30]
[343146161,1732381832720,-1216.24,0.00052203,2]
[343146162,1732381832730,-150.27,0.00052566,2]
[343146163,1732381832739,-250.0,0.00052702,120]
[343146164,1732381832748,-500.0,0.00052728,2]
[343146165,1732381832758,-175.00822001,0.00052763,15]
[343146166,1732381832768,-250.0,0.00052776,120]
[343146167,1732381832777,-310.9440607,0.00052801,15]
[343146168,1732381832787,-2172.72,0.00052851,2]
[343146169,1732381832797,-13666.0,0.00052854,120]
[343146171,1732381832806,-150.0,0.00052854,2]
[343146173,1732381832816,-5944.0,0.00052854,120]
[343146175,1732381832827,-1000.0,0.00052863,120]
[343146176,1732381832836,-252.37,0.00052868,120]
[343146178,1732381832845,-3132.78,0.00052897,2]
[343146180,1732381832855,-31977.623,0.000529,2]
[343146182,1732381832866,-200.0,0.00052901,2]
[343146184,1732381832876,-150.0,0.00052904,2]
[343146185,1732381832885,-214.54,0.00052941,120]
[343146187,1732381832895,-2000.0,0.00052956,120]
[343146189,1732381832905,-3982.63,0.00053063,7]
[343146191,1732381832916,-163.1,0.00053082,120]
[343146192,1732381832926,-175.00821997,0.0005311,15]
[343146194,1732381832935,-310.94406069,0.00053144,15]
[343146196,1732381832945,-175.00821997,0.00053458,15]
[343146198,1732381832955,-310.94406069,0.00053487,15]
[343146200,1732381832964,-438.83,0.00053618,2]
[343146202,1732381832974,-175.00821997,0.00053805,15]
[343146204,1732381832983,-310.94406069,0.00053831,15]
[343146205,1732381832993,-450.0,0.00054,120]
[343146207,1732381833003,-2826.2057,0.00054059,2]
[343146209,1732381833013,-175.00821997,0.00054153,15]
[343146211,1732381833022,-1000.0,0.00054159,2]
[343146213,1732381833032,-2500.0,0.00054159,2]
[343146215,1732381833042,-310.94406069,0.00054174,15]
[343146217,1732381833051,-863.42,0.00054212,2]
[343146219,1732381833061,-500.0,0.00054258,120]
[343146221,1732381833070,-500.0,0.00054258,120]
[343146223,1732381833080,-500.0,0.00054258,31]
[343146225,1732381833090,-500.0,0.00054258,31]
[343146227,1732381833100,-500.0,0.00054258,31]
[343146228,1732381833110,-500.0,0.00054258,31]
[343146230,1732381833120,-500.0,0.00054258,120]
[343146232,1732381833130,-500.0,0.00054258,31]
[343146234,1732381833140,-150.0,0.00054258,31]
[343146236,1732381833151,-500.0,0.00054258,120]
[343146238,1732381833162,-429.81320848,0.00054258,120]
[343146240,1732381833172,-500.0,0.00054258,31]
[343146241,1732381833182,-500.0,0.00054258,120]
[343146243,1732381833192,-500.0,0.00054258,31]
[343146245,1732381833200,-500.0,0.00054258,120]
[343146247,1732381833210,-500.0,0.00054258,31]
[343146249,1732381833220,-500.0,0.00054258,120]
[343146251,1732381833229,-500.0,0.00054258,31]
[343146253,1732381833239,-472.14949274,0.00054258,120]
[343146255,1732381833248,-500.0,0.00054258,31]
[343146257,1732381833258,-500.0,0.00054258,31]
[343146259,1732381833268,-500.0,0.00054258,120]
[343146260,1732381833278,-500.0,0.00054258,120]
[343146262,1732381833287,-547.16124017,0.00054258,31]
[343146264,1732381833297,-500.0,0.00054258,120]
[343146266,1732381833307,-500.0,0.00054258,120]
[343146268,1732381833317,-500.0,0.00054258,31]
[343146270,1732381833327,-500.0,0.00054258,31]
[343146272,1732381833336,-64863.6671208,0.00054259,2]
[343146274,1732381833350,-5391.0768465,0.00054259,2]
[343146278,1732381833386,-9709.699997,0.00054259,2]
[343146288,1732381833485,-0.00077023,0.00054259,2]
[343146298,1732381833652,-27418.52616547,0.00054259,2]
[343146299,1732381833663,-519.186,0.000544,120]
[343146300,1732381833674,-1216.24,0.00054467,2]
[343146301,1732381833684,-167.22,0.00054479,2]
[343146302,1732381833695,-175.00821997,0.000545,15]
[343146303,1732381833706,-310.94406069,0.00054517,15]
[343146304,1732381833716,-1000.0,0.00054694,2]
[343146305,1732381833728,-257.99017314,0.00054694,26]
[343146306,1732381833740,-150.27,0.00054789,2]
[343146308,1732381833752,-500.0,0.00054794,120]
[343146310,1732381833762,-500.0,0.00054794,120]
[343146312,1732381833772,-500.0,0.00054794,120]
[343146314,1732381833783,-500.0,0.00054794,120]
[343146316,1732381833793,-500.0,0.00054794,120]
[343146318,1732381833804,-437.55,0.00054794,120]
[343146320,1732381833814,-500.0,0.00054794,120]
[343146322,1732381833824,-523.29234706,0.00054794,120]
[343146324,1732381833834,-500.0,0.00054794,120]
[343146326,1732381833845,-500.0,0.00054794,120]
[343146328,1732381833855,-500.0,0.00054794,120]
[343146330,1732381833865,-500.0,0.00054794,120]
[343146332,1732381833875,-500.0,0.00054794,120]
[343146334,1732381833885,-500.0,0.00054794,120]
[343146336,1732381833895,-507.54391454,0.00054794,120]
[343146338,1732381833905,-500.0,0.00054794,120]
[343146340,1732381833914,-500.0,0.00054794,120]
[343146342,1732381833924,-500.0,0.00054794,120]
[343146344,1732381833933,-503.81580677,0.00054794,120]
[343146346,1732381833943,-500.0,0.00054794,120]
[343146348,1732381833953,-1026.26,0.00054794,120]
[343146350,1732381833963,-1026.26,0.00054794,120]
[343146352,1732381833973,-562.45120742,0.00054794,120]
[343146354,1732381833983,-500.0,0.00054794,120]
[343146356,1732381833993,-503.9533789,0.00054794,120]
[343146358,1732381834002,-500.0,0.00054794,120]
[343146360,1732381834012,-893.77,0.00054794,120]
[343146362,1732381834022,-893.77,0.00054794,120]
[343146364,1732381834031,-572.24,0.00054794,120]
[343146366,1732381834041,-572.24,0.00054794,120]
[343146368,1732381834051,-490.69930301,0.00054794,120]
[343146370,1732381834060,-772.04,0.00054794,120]
[343146372,1732381834070,-772.04,0.00054794,120]
[343146374,1732381834079,-942.48,0.00054794,120]
[343146376,1732381834089,-942.48,0.00054794,120]
[343146378,1732381834099,-500.0,0.00054794,120]
[343146380,1732381834108,-500.0,0.00054794,120]
[343146382,1732381834117,-500.0,0.00054794,120]
[343146384,1732381834127,-500.0,0.00054794,2]
[343146386,1732381834136,-500.0,0.00054794,2]
[343146388,1732381834156,-500.0,0.00054794,120]
[343146390,1732381834166,-502.47932676,0.00054794,120]
[343146392,1732381834176,-500.0,0.00054794,120]
[343146394,1732381834186,-500.0,0.00054794,120]
[343146396,1732381834202,-500.0,0.00054794,120]
[343146398,1732381834214,-503.87412983,0.00054794,120]
[343146400,1732381834224,-500.0,0.00054794,120]
[343146402,1732381834235,-500.0,0.00054794,120]
[343146404,1732381834246,-500.0,0.00054794,120]
[343146406,1732381834258,-500.0,0.00054794,120]
[343146408,1732381834268,-500.0,0.00054794,120]
[343146410,1732381834279,-500.0,0.00054794,120]
[343146412,1732381834291,-525.41150917,0.00054794,120]
[343146414,1732381834302,-755.85,0.00054794,120]
[343146416,1732381834312,-755.85,0.00054794,120]
[343146418,1732381834322,-632.83,0.00054794,120]
[343146420,1732381834332,-500.0,0.00054794,120]
[343146422,1732381834342,-556.92270198,0.00054794,120]
[343146424,1732381834352,-500.0,0.00054794,120]
[343146425,1732381834362,-532.18,0.00054794,120]
[343146427,1732381834373,-532.18,0.00054794,120]
[343146429,1732381834383,-500.0,0.00054794,120]
[343146432,1732381834394,-506.36476668,0.00054794,120]
[343146434,1732381834406,-610.32,0.00054794,120]
[343146436,1732381834416,-510.9970244,0.00054794,120]
[343146437,1732381834427,-247.51523261,0.00054794,120]
[343146439,1732381834437,-500.0,0.00054794,120]
[343146441,1732381834447,-620.77,0.00054794,120]
[343146443,1732381834457,-521.29598077,0.00054794,120]
[343146445,1732381834467,-500.0,0.00054794,120]
[343146447,1732381834477,-503.12790573,0.00054794,120]
[343146449,1732381834487,-500.0,0.00054794,120]
[343146451,1732381834497,-502.68260718,0.00054794,120]
[343146452,1732381834506,-500.0,0.00054794,120]
[343146453,1732381834516,-661.71,0.00054794,120]
[343146454,1732381834526,-500.0,0.00054794,120]
[343146455,1732381834539,-500.0,0.00054794,120]
[343146456,1732381834549,-630.75,0.00054794,120]
[343146457,1732381834561,-630.75,0.00054794,120]
[343146458,1732381834571,-693.34,0.00054794,120]
[343146459,1732381834584,-500.0,0.00054794,120]
[343146460,1732381834595,-500.0,0.00054794,120]
[343146461,1732381834605,-500.0,0.00054794,120]
[343146462,1732381834615,-163.72,0.00054794,120]
[343146465,1732381834626,-500.0,0.00054794,120]
[343146467,1732381834636,-510.90371184,0.00054794,120]
[343146468,1732381834646,-1211.89,0.00054794,120]
[343146470,1732381834655,-500.0,0.00054794,120]
[343146472,1732381834674,-500.0,0.00054794,120]
[343146474,1732381834693,-500.0,0.00054794,120]
[343146476,1732381834703,-500.0,0.00054794,120]
[343146478,1732381834712,-500.0,0.00054794,120]
[343146480,1732381834722,-500.0,0.00054794,120]
[343146482,1732381834732,-500.0,0.00054794,120]
[343146483,1732381834741,-500.0,0.00054794,120]
[343146485,1732381834751,-500.0,0.00054794,120]
[343146486,1732381834762,-530.41080609,0.00054794,120]
[343146487,1732381834772,-161.4675624,0.00054794,120]
[343146488,1732381834783,-541.73871848,0.00054794,120]
[343146489,1732381834793,-500.0,0.00054794,120]
[343146490,1732381834804,-500.0,0.00054794,120]
[343146491,1732381834814,-466.03257859,0.00054794,120]
[343146492,1732381834825,-500.0,0.00054794,120]
[343146493,1732381834835,-500.0,0.00054794,120]
[343146494,1732381834845,-500.0,0.00054794,120]
[343146495,1732381834854,-500.0,0.00054794,120]
[343146496,1732381834865,-500.0,0.00054794,120]
[343146497,1732381834876,-500.0,0.00054794,120]
[343146498,1732381834887,-500.0,0.00054794,120]
[343146499,1732381834898,-500.0,0.00054794,120]
[343146500,1732381834908,-500.0,0.00054794,120]
[343146501,1732381834918,-500.0,0.00054794,120]
[343146502,1732381834928,-500.0,0.00054794,120]
[343146503,1732381834937,-177.57,0.00054794,120]
[343146504,1732381834947,-500.0,0.00054794,120]
[343146505,1732381834957,-500.0,0.00054794,120]
[343146506,1732381834966,-500.0,0.00054794,120]
[343146507,1732381834975,-374.20715146,0.00054794,120]
[343146508,1732381834985,-500.0,0.00054794,120]
[343146509,1732381834995,-500.0,0.00054794,120]
[343146510,1732381835005,-500.0,0.00054794,120]
[343146511,1732381835014,-500.0,0.00054794,120]
[343146512,1732381835023,-480.97427249,0.00054794,120]
[343146513,1732381835033,-574.64,0.00054794,120]
[343146514,1732381835043,-10.97343657,0.00054794,120]
[343146515,1732381835069,-489.02656343,0.00054794,120]
[343146516,1732381835079,-500.0,0.00054794,120]
[343146517,1732381835089,-786.71,0.00054794,54]
[343146518,1732381835099,-177.90291657,0.00054794,120]
[343146519,1732381835114,-322.09708343,0.00054794,120]
[343146520,1732381835123,-268.38647076,0.00054794,120]
[343146521,1732381835135,-231.61352924,0.00054794,120]
[343146522,1732381835144,-1035.76,0.00054794,120]
[343146523,1732381835154,-500.0,0.00054794,120]
[343146524,1732381835163,-500.0,0.00054794,120]
[343146525,1732381835173,-546.27110601,0.00054794,120]
[343146526,1732381835182,-500.0,0.00054794,120]
[343146527,1732381835191,-500.0,0.00054794,120]
[343146528,1732381835218,-500.0,0.00054794,120]
[343146529,1732381835227,-547.05,0.00054794,120]
[343146530,1732381835237,-500.0,0.00054794,120]
[343146531,1732381835247,-500.0,0.00054794,120]
[343146532,1732381835257,-500.0,0.00054794,120]
[343146533,1732381835267,-601.7260873,0.00054794,120]
[343146534,1732381835276,-538.43125556,0.00054794,120]
[343146535,1732381835286,-631.46,0.00054794,120]
[343146536,1732381835295,-542.83,0.00054794,120]
[343146537,1732381835305,-500.0,0.00054794,120]
[343146538,1732381835315,-1000.0,0.00054794,120]
[343146539,1732381835324,-734.58,0.00054794,120]
[343146540,1732381835334,-516.34,0.00054794,120]
[343146541,1732381835343,-570.63,0.00054794,120]
[343146542,1732381835353,-500.0,0.00054794,120]
[343146543,1732381835363,-819.21,0.00054794,120]
[343146544,1732381835373,-1066.75309643,0.00054794,120]
[343146545,1732381835383,-500.0,0.00054794,120]
[343146546,1732381835393,-500.0,0.00054794,120]
[343146547,1732381835403,-500.0,0.00054794,120]
[343146548,1732381835413,-500.0,0.00054794,120]
[343146549,1732381835422,-261.97358535,0.00054794,120]
[343146550,1732381835432,-1094.74,0.00054794,120]
[343146551,1732381835440,-861.35,0.00054794,120]
[343146552,1732381835448,-500.0,0.00054794,120]
[343146553,1732381835459,-500.0,0.00054794,120]
[343146554,1732381835468,-500.0,0.00054794,120]
[343146555,1732381835478,-500.0,0.00054794,120]
[343146556,1732381835487,-500.0,0.00054794,120]
[343146557,1732381835497,-500.0,0.00054794,120]
[343146558,1732381835506,-500.0,0.00054794,120]
[343146559,1732381835516,-780.18,0.00054794,120]
[343146560,1732381835526,-500.0,0.00054794,120]
[343146561,1732381835536,-500.0,0.00054794,120]
[343146562,1732381835548,-500.0,0.00054794,120]
[343146563,1732381835558,-632.06,0.00054794,120]
[343146564,1732381835568,-500.0,0.00054794,120]
[343146565,1732381835579,-500.0,0.00054794,120]
[343146566,1732381835589,-500.0,0.00054794,120]
[343146567,1732381835599,-500.0,0.00054794,120]
[343146568,1732381835609,-500.0,0.00054794,120]
[343146569,1732381835620,-500.0,0.00054794,120]
[343146570,1732381835630,-500.0,0.00054794,120]
[343146571,1732381835639,-824.43,0.00054794,120]
[343146572,1732381835649,-500.0,0.00054794,120]
[343146573,1732381835659,-500.0,0.00054794,120]
[343146574,1732381835668,-731.97,0.00054794,120]
[343146575,1732381835677,-530.36128939,0.00054794,120]
[343146576,1732381835686,-521.35693161,0.00054794,120]
[343146577,1732381835695,-500.0,0.00054794,120]
[343146578,1732381835713,-500.0,0.00054794,120]
[343146579,1732381835730,-500.0,0.00054794,120]
[343146580,1732381835740,-500.0,0.00054794,120]
[343146581,1732381835750,-500.0,0.00054794,120]
[343146582,1732381835761,-500.0,0.00054794,120]
[343146583,1732381835771,-500.0,0.00054794,120]
[343146584,1732381835781,-500.0,0.00054794,120]
[343146585,1732381835791,-500.0,0.00054794,120]
[343146586,1732381835801,-751.75,0.00054794,120]
[343146587,1732381835811,-500.0,0.00054794,120]
[343146588,1732381835822,-476.95378042,0.00054794,120]
[343146589,1732381835832,-153.74424069,0.00054794,120]
[343146590,1732381835842,-500.0,0.00054794,120]
[343146591,1732381835852,-1141.34,0.00054794,120]
[343146592,1732381835861,-500.0,0.00054794,120]
[343146593,1732381835870,-500.0,0.00054794,120]
[343146594,1732381835880,-948.52,0.00054794,30]
[343146595,1732381835890,-500.0,0.00054794,120]
[343146596,1732381835900,-500.0,0.00054794,120]
[343146597,1732381835909,-500.0,0.00054794,120]
[343146598,1732381835919,-500.0,0.00054794,120]
[343146599,1732381835930,-500.0,0.00054794,120]
[343146600,1732381835941,-500.0,0.00054794,120]
[343146601,1732381836125,-500.0,0.00054794,120]
[343146602,1732381836136,-500.0,0.00054794,120]
[343146603,1732381836146,-500.0,0.00054794,120]
[343146604,1732381836156,-500.0,0.00054794,120]
[343146605,1732381836165,-500.0,0.00054794,120]
[343146606,1732381836175,-500.0,0.00054794,120]
[343146607,1732381836185,-500.0,0.00054794,120]
[343146608,1732381836195,-1157.45,0.00054794,120]
[343146609,1732381836204,-245.40689003,0.00054794,120]
[343146610,1732381836218,-254.59310997,0.00054794,120]
[343146611,1732381836245,-500.0,0.00054794,120]
[343146612,1732381836255,-500.0,0.00054794,120]
[343146613,1732381836264,-500.0,0.00054794,120]
[343146614,1732381836274,-500.0,0.00054794,120]
[343146615,1732381836283,-500.0,0.00054794,120]
[343146616,1732381836292,-500.0,0.00054794,120]
[343146617,1732381836302,-496.54145999,0.00054794,120]
[343146618,1732381836312,-500.0,0.00054794,120]
[343146619,1732381836321,-903.62,0.00054794,120]
[343146620,1732381836331,-527.83933744,0.00054794,120]
[343146621,1732381836342,-500.0,0.00054794,120]
[343146622,1732381836351,-500.0,0.00054794,120]
[343146623,1732381836360,-500.0,0.00054794,120]
[343146624,1732381836370,-500.0,0.00054794,120]
[343146625,1732381836381,-524.68,0.00054794,120]
[343146626,1732381836390,-804.88,0.00054794,120]
[343146627,1732381836400,-500.0,0.00054794,120]
[343146628,1732381836409,-500.0,0.00054794,120]
[343146629,1732381836418,-500.0,0.00054794,120]
[343146630,1732381836428,-500.0,0.00054794,120]
[343146631,1732381836438,-500.0,0.00054794,120]
[343146632,1732381836447,-500.0,0.00054794,120]
[343146633,1732381836457,-500.0,0.00054794,120]
[343146634,1732381836466,-813.28,0.00054794,120]
[343146635,1732381836475,-500.0,0.00054794,120]
[343146636,1732381836485,-536.79,0.00054794,120]
[343146637,1732381836494,-525.96,0.00054794,120]
[343146638,1732381836504,-500.0,0.00054794,120]
[343146639,1732381836514,-500.0,0.00054794,120]
[343146640,1732381836523,-500.0,0.00054794,120]
[343146641,1732381836533,-500.0,0.00054794,120]
[343146642,1732381836542,-348.06406314,0.00054794,120]
[343146643,1732381836551,-500.0,0.00054794,120]
[343146644,1732381836566,-500.0,0.00054794,120]
[343146645,1732381836575,-156.04198841,0.00054794,120]
[343146646,1732381836586,-500.0,0.00054794,120]
[343146647,1732381836596,-743.73,0.00054794,120]
[343146648,1732381836606,-505.00422279,0.00054794,120]
[343146649,1732381836616,-500.0,0.00054794,120]
[343146650,1732381836627,-500.0,0.00054794,21]
[343146651,1732381836637,-150.0,0.00054795,30]
[343146652,1732381836647,-500.0,0.00054795,120]
[343146653,1732381836657,-500.0,0.00054795,120]
[343146654,1732381836667,-500.0,0.00054795,120]
[343146655,1732381836677,-175.00821997,0.00054848,15]
[343146656,1732381836687,-310.94406069,0.0005486,15]
[343146657,1732381836696,-5555.30641299,0.00054884,120]
[343146658,1732381836706,-213.45747164,0.0005499,7]
[343146659,1732381836716,-151.8,0.0005499,120]
[343146660,1732381836726,-151.8,0.0005499,120]
[343146661,1732381836753,-500.0,0.00054998,120]
[343146662,1732381836763,-297.5685631,0.00054999,120]
[343146669,1732381838286,-1094.0,0.00052854,120]
[343146672,1732381838298,-218.7714369,0.00054999,120]
[343146673,1732381838312,-343.9785631,0.00054999,120]
[343146675,1732381838324,-156.0214369,0.00054999,120]
[343146676,1732381838335,-428.4565631,0.00054999,120]
[343146677,1732381838414,-71.5434369,0.00054999,120]
[343146678,1732381838424,-500.0,0.00054999,120]
[343146679,1732381838434,-500.0,0.00054999,120]
[343146680,1732381838443,-632.06,0.00054999,120]
[343146681,1732381838452,-1000.0,0.00054999,30]
[343146682,1732381838461,-500.0,0.00054999,120]
[343146683,1732381838471,-500.0,0.00054999,120]
[343146684,1732381838480,-500.0,0.00054999,120]
[343146685,1732381838490,-500.0,0.00054999,120]
[343146686,1732381838499,-500.0,0.00054999,120]
[343146687,1732381838508,-500.0,0.00054999,120]
[343146688,1732381838517,-500.0,0.00054999,120]
[343146689,1732381838526,-500.0,0.00054999,120]
[343146690,1732381838536,-1141.34,0.00054999,120]
[343146691,1732381838546,-500.0,0.00054999,120]
[343146692,1732381838556,-500.0,0.00054999,120]
[343146693,1732381838568,-500.0,0.00054999,120]
[343146694,1732381838578,-174.66,0.00054999,120]
[343146695,1732381838587,-500.0,0.00054999,120]
[343146696,1732381838598,-500.0,0.00054999,120]
[343146697,1732381838608,-500.0,0.00054999,120]
[343146698,1732381838618,-500.0,0.00054999,120]
[343146699,1732381838627,-500.0,0.00054999,120]
[343146700,1732381838638,-500.0,0.00054999,120]
[343146701,1732381838647,-500.0,0.00054999,120]
[343146702,1732381838657,-306.0888843,0.00054999,120]
[343146703,1732381838670,-193.9111157,0.00054999,120]
[343146704,1732381838679,-500.0,0.00054999,120]
[343146705,1732381838689,-500.0,0.00054999,120]
[343146706,1732381838698,-1157.45,0.00054999,120]
[343146707,1732381838708,-224.85939152,0.00054999,120]
[343146708,1732381838719,-500.0,0.00054999,120]
[343146710,1732381838729,-500.0,0.00054999,120]
[343146712,1732381838738,-500.0,0.00054999,120]
[343146714,1732381838747,-500.0,0.00054999,120]
[343146715,1732381838756,-500.0,0.00054999,120]
[343146718,1732381838782,-500.0,0.00054999,120]
[343146720,1732381838791,-500.0,0.00054999,120]
[343146722,1732381838800,-500.0,0.00054999,120]
[343146724,1732381838810,-500.0,0.00054999,120]
[343146726,1732381838819,-379.39553648,0.00054999,120]
[343146728,1732381838831,-145.28446352,0.00054999,120]
[343146730,1732381838840,-500.0,0.00054999,120]
[343146732,1732381838850,-500.0,0.00054999,120]
[343146734,1732381838859,-500.0,0.00054999,120]
[343146736,1732381838869,-500.0,0.00054999,120]
[343146738,1732381838878,-500.0,0.00054999,120]
[343146740,1732381838887,-500.0,0.00054999,120]
[343146742,1732381838896,-500.0,0.00054999,120]
[343146744,1732381838905,-500.0,0.00054999,120]
[343146746,1732381838915,-500.0,0.00054999,120]
[343146748,1732381838923,-500.0,0.00054999,120]
[343146750,1732381838934,-500.0,0.00054999,120]
[343146752,1732381838943,-525.96,0.00054999,120]
[343146754,1732381838953,-536.79,0.00054999,120]
[343146756,1732381838963,-536.79,0.00054999,120]
[343146758,1732381838972,-500.0,0.00054999,120]
[343146760,1732381838982,-500.0,0.00054999,120]
[343146762,1732381838991,-500.0,0.00054999,120]
[343146764,1732381839001,-500.0,0.00054999,120]
[343146766,1732381839010,-743.73,0.00054999,120]
[343146768,1732381839021,-500.0,0.00054999,21]
[343146770,1732381839030,-500.0,0.00054999,21]